bitfinex-derivatives/quotes_SOLF0:USTF0_20250309
["timestamp","ask_amount","ask_price","bid_price","bid_amount"]
[1741537889555,12.91078735,130.24,130.1,57.86651938]
[1741537889760,7.6834,130.18,130.11,7.6868]
[1741537889963,33.08,130.17,130.11,7.6868]
[1741537890159,7.6846,130.16,130.1,57.86651938]
[1741537890569,33.08,130.17,130.1,57.86651938]
[1741537890775,0.05603043,130.14,130.12,0.05803627]
[1741537891064,192.0,130.23,130.13,57.86651938]
[1741537891266,33.08,130.22,130.13,57.86651938]
[1741537891460,33.08,130.22,130.16,57.86651938]
[1741537892164,33.08,130.22,130.17,6.11]
[1741537892366,0.05817724,130.2,130.18,0.0498652]
[1741537893110,249.97741938,130.28,130.18,0.0498652]
[1741537893291,33.08,130.27,130.17,6.11]
[1741537894195,33.08,130.27,130.17,13.7932]
[1741537894495,0.05615151,130.23,130.21,0.0514157]
[1741537894695,33.13615151,130.23,130.21,0.0514157]
[1741537895913,0.05615151,130.23,130.21,0.0514157]
[1741537897624,33.08,130.27,130.21,0.0514157]
[1741537897908,192.0,130.3,130.19,57.86651938]
[1741537898110,7.6775,130.28,130.19,57.86651938]
[1741537898297,33.08,130.29,130.19,57.86651938]
[1741537898705,0.05330011,130.25,130.23,0.05328249]
[1741537898947,33.13330011,130.25,130.23,0.05328249]
[1741537899201,0.05330011,130.25,130.23,0.05328249]
[1741537899707,40.7595,130.24,130.23,0.05328249]
[1741537900100,33.08,130.24,130.23,0.05328249]
[1741537900808,0.05330011,130.25,130.23,0.05328249]
[1741537901521,7.73260011,130.25,130.23,0.05328249]
[1741537901809,0.05330011,130.25,130.23,0.05328249]
[1741537902006,7.6795,130.24,130.23,0.05328249]
[1741537902514,7.6808,130.22,130.18,7.6829]
[1741537902816,7.6808,130.22,130.17,6.11]
[1741537902817,33.08,130.23,130.17,6.11]
[1741537903014,33.08,130.23,130.11,57.86651938]
[1741537903208,33.08,130.23,130.11,61.97471938]
[1741537903610,0.04919465,130.18,130.16,0.05882926]
[1741537903916,7.6813,130.21,130.17,7.6831]
[1741537904123,0.05712277,130.18,130.15,33.08]
[1741537904510,0.05712277,130.18,130.15,33.13385661]
[1741537904807,0.05712277,130.18,130.17,7.6836]
[1741537905009,40.7605,130.23,130.15,33.13385661]
[1741537905209,33.08,130.23,130.15,33.08]
[1741537905400,33.08,130.23,130.2,7.6813]
[1741537905612,33.08,130.23,130.15,33.08]
[1741537906013,33.08,130.23,130.14,57.86651938]
[1741537906203,0.0556056,130.2,130.18,0.05802642]
[1741537906515,40.7624,130.19,130.18,0.05802642]
[1741537906703,33.08,130.19,130.18,0.05802642]
[1741537907308,33.08,130.19,130.11,4.1082]
[1741537907509,7.6845,130.16,130.12,7.6863]
[1741537908101,40.7626,130.19,130.15,7.6847]
[1741537908301,33.08,130.22,130.12,90.94651938]
[1741537908503,0.05346796,130.18,130.16,0.0498504]
[1741537911499,0.05346796,130.18,130.16,7.7336504]
[1741537911696,0.05346796,130.18,130.16,0.0498504]
[1741537911995,7.6836,130.17,130.16,0.0498504]
[1741537912991,33.13346796,130.18,130.16,0.0498504]
[1741537913594,40.81676796,130.18,130.16,0.0498504]
[1741537913793,33.13346796,130.18,130.16,0.0498504]
[1741537914093,7.6836,130.17,130.16,5.04e-05]
[1741537915386,65.55011938,130.17,130.16,5.04e-05]
[1741537915592,69.39011938,130.17,130.16,5.04e-05]
[1741537916193,65.55011938,130.17,130.16,5.04e-05]
[1741537916395,7.6836,130.17,130.16,5.04e-05]
[1741537918700,199.6836,130.17,130.16,5.04e-05]
[1741537920196,232.7636,130.17,130.16,5.04e-05]
[1741537921298,199.6836,130.17,130.16,5.04e-05]
[1741537921495,232.7636,130.17,130.16,5.04e-05]
[1741537923401,7.6889,130.08,130.07,4.215]
[1741537923701,33.08,130.11,130.07,4.215]
[1741537924000,33.08,130.11,130.02,35.71688823]
[1741537924200,33.08,130.11,130.03,4.0099]
[1741537924597,0.05561558,130.08,130.06,0.05321389]
[1741537925399,33.08,130.14,130.08,35.71688823]
[1741537925595,192.0,130.16,130.09,2.0286]
[1741537925802,33.08,130.18,130.1,35.71688823]
[1741537926103,40.7626,130.19,130.13,7.6856]
[1741537926304,33.08,130.19,130.1,37.68428823]
[1741537926602,7.73567803,130.17,130.15,0.04999646]
[1741537926804,0.05177803,130.17,130.15,0.04999646]
[1741537928704,0.05177803,130.17,130.16,7.6842]
[1741537929106,33.08,130.2,130.15,0.04999646]
[1741537929295,225.09448124,130.24,130.15,0.04999646]
[1741537929600,33.08,130.23,130.13,33.08]
[1741537930002,250.02338938,130.22,130.1,1.9674]
[1741537930202,192.0,130.21,130.1,1.9674]
[1741537930403,0.05446063,130.17,130.15,0.0568513]
[1741537930700,40.7642,130.16,130.15,0.0568513]
[1741537930902,33.08,130.16,130.15,0.0568513]
[1741537932102,0.05446063,130.17,130.15,0.0568513]
[1741537932299,0.05446063,130.17,130.16,7.6842]
[1741537932494,0.05446063,130.17,130.15,2.0517513]
[1741537932696,192.0,130.21,130.15,2.0517513]
[1741537933104,192.0,130.21,130.15,0.0568513]
[1741537933801,0.04840537,130.19,130.15,0.0568513]
[1741537934003,33.08,130.18,130.15,0.0568513]
[1741537934501,33.08,130.18,130.1,1.9674]
[1741537934502,36.92,130.18,130.05,311.64338938]
[1741537934801,7.6879,130.1,130.06,9.6622]
[1741537935001,33.06,130.11,130.04,1.964]
[1741537935407,7.6887,130.09,130.04,9.6549]
[1741537935606,33.06,130.11,130.04,1.964]
[1741537935803,0.0559611,130.08,130.05,0.05324457]
[1741537936612,7.7450611,130.08,130.05,0.05324457]
[1741537936799,0.0559611,130.08,130.05,0.05324457]
[1741537937005,33.08,130.07,130.05,0.05324457]
[1741537937707,192.0,130.06,130.0,0.02]
[1741537938104,7.6915,130.04,130.0,0.02]
[1741537938305,192.0,130.06,130.0,0.02]
[1741537938501,33.08,130.07,130.0,0.02]
[1741537938913,0.05660571,130.05,130.02,0.05185151]
[1741537939802,0.05660571,130.05,130.03,10.63798261]
[1741537940110,0.05660571,130.05,130.02,31.96579936]
[1741537940311,58.02338938,130.04,130.01,257.31234262]
[1741537940511,7.6925,130.02,130.01,245.16974262]
[1741537940715,33.08,130.02,130.01,245.16974262]
[1741537941809,33.13660571,130.05,130.01,245.16974262]
[1741537942004,0.05660571,130.05,130.01,245.16974262]
[1741537942310,0.05660571,130.05,130.02,6.0738]
[1741537942508,0.05660571,130.05,130.01,245.16974262]
[1741537942708,33.13660571,130.05,130.01,245.16974262]
[1741537943412,91.15999509,130.05,130.01,245.16974262]
[1741537943617,7.6925,130.02,130.01,233.37484262]
[1741537943813,7.6925,130.02,130.01,207.01704262]
[1741537944014,58.02338938,130.03,130.0,7.245e-05]
[1741537944210,7.6931,130.01,130.0,7.245e-05]
[1741537944411,40.7731,130.01,130.0,7.245e-05]
[1741537944613,44.6131,130.01,130.0,7.245e-05]
[1741537945111,44.6131,130.01,129.9,4.0989]
[1741537945112,192.0,130.0,129.9,4.0989]
[1741537945310,58.02338938,129.99,129.87,58.02338938]
[1741537945517,58.02338938,129.97,129.84,58.02338938]
[1741537945715,225.1951,129.96,129.84,58.02338938]
[1741537945915,7.7,129.9,129.84,58.02338938]
[1741537946119,33.1,129.89,129.84,58.02338938]
[1741537946521,0.05541196,129.88,129.86,0.05478208]
[1741537947214,33.1,129.9,129.86,0.05478208]
[1741537947416,33.1,129.93,129.87,58.02338938]
[1741537947715,33.42,129.98,129.9,58.02338938]
[1741537947911,225.5,130.01,129.93,58.02338938]
[1741537948221,225.5,130.01,129.96,0.05362922]
[1741537948222,0.0519253,129.98,129.96,0.05362922]
[1741537948513,33.56,130.03,129.96,58.0770186]
[1741537948916,1.33962083,130.07,129.99,58.02338938]
[1741537949118,33.64,130.07,130.03,7.6918]
[1741537949324,153.95116544,130.1,130.02,58.02338938]
[1741537949619,0.05924284,130.06,130.04,0.05553095]
[1741537950318,41.3679,130.1,130.04,7.74683095]
[1741537950519,33.68,130.1,130.04,0.05553095]
[1741537951324,33.88,130.11,130.04,0.05553095]
[1741537951516,0.05386828,130.08,130.04,0.05553095]
[1741537951718,33.92,130.14,130.06,58.02338938]
[1741537952319,33.92,130.14,130.01,253.86]
[1741537952320,58.02338938,130.13,130.02,34.0]
[1741537952520,7.6906,130.06,130.02,2.0753]
[1741537952814,34.06,130.12,130.05,58.02338938]
[1741537953019,34.1,130.15,130.08,58.02338938]
[1741537953218,34.1,130.15,130.05,58.02338938]
[1741537953419,0.05023608,130.1,130.05,58.02338938]
[1741537953625,0.05023608,130.1,130.09,0.04914004]
[1741537953826,34.22,130.14,130.05,58.02338938]
[1741537954123,34.22,130.16,130.08,58.08169404]
[1741537954321,34.22,130.16,130.08,0.05830466]
[1741537954626,92.24338938,130.16,130.05,58.02338938]
[1741537954826,7.687,130.12,130.05,65.71358938]
[1741537955026,34.33033257,130.12,130.09,0.05354455]
[1741537955320,7.6877,130.1,130.09,0.05354455]
[1741537955826,34.33033257,130.12,130.09,0.05354455]
[1741537956427,16.54461058,130.19,130.1,58.02338938]
[1741537956622,16.54461058,130.19,130.11,34.38]
[1741537956821,24.22711058,130.19,130.11,34.38]
[1741537957015,16.54461058,130.19,130.12,2.02]
[1741537957322,42.41291913,130.22,130.16,58.02338938]
[1741537957530,42.41291913,130.22,130.19,58.02338938]
[1741537957726,32.85431913,130.22,130.2,2.02]
[1741537958026,40.5918493,130.22,130.2,2.02]
[1741537958322,32.9111493,130.22,130.19,0.05379536]
[1741537959325,7.6818,130.2,130.19,0.05379536]
[1741537959717,7.6818,130.2,130.19,9.536e-05]
[1741537962528,3.84,130.2,130.07,34.74]
[1741537962727,58.02338938,130.17,130.06,34.74]
[1741537962916,58.02338938,130.17,130.07,1.9828]
[1741537962917,34.74,130.16,130.07,1.9828]
[1741537963118,34.74,130.16,130.08,58.02338938]
[1741537963320,34.74,130.16,130.07,1.9828]
[1741537963632,0.0485165,130.13,130.07,1.9828]
[1741537963932,0.0485165,130.13,130.1,0.05035585]
[1741537964228,7.6871,130.11,130.1,0.05035585]
[1741537964427,34.94,130.12,130.1,0.05035585]
[1741537964624,7.6871,130.11,130.1,0.05035585]
[1741537964929,7.6871,130.11,130.1,5.585e-05]
[1741537965324,7.6925,130.02,130.01,6.0888]
[1741537965635,34.92,130.09,130.01,6.0888]
[1741537965832,7.6899,130.07,130.01,6.0888]
[1741537966330,7.6899,130.07,130.01,41.0088]
[1741537966626,0.05313849,130.05,130.03,0.04907538]
[1741537967027,34.92,130.09,130.03,3.88907538]
[1741537967326,34.88,130.12,130.03,62.04907538]
[1741537967526,34.88,130.15,130.05,58.02338938]
[1741537967730,34.88,130.15,130.08,7.6887]
[1741537967934,192.0,130.16,130.09,2.0012]
[1741537968130,34.86,130.16,130.1,0.05254565]
[1741537968437,58.02338938,130.12,130.01,4.0157]
[1741537968734,34.86,130.16,130.01,4.0157]
[1741537968735,58.02338938,130.09,130.01,4.0157]
[1741537968932,58.02338938,130.09,129.98,2.0361]
[1741537969126,58.02338938,130.06,129.98,2.0361]
[1741537969431,0.05480351,130.03,130.01,0.05051967]
[1741537969730,34.92,130.05,130.01,0.05051967]
[1741537969936,0.04878484,130.03,130.01,0.05051967]
[1741537970327,35.02,130.07,130.01,0.05051967]
[1741537970535,0.05718529,130.03,130.01,0.05051967]
[1741537970732,95.17078938,130.1,130.01,35.09051967]
[1741537970928,95.17078938,130.1,129.98,95.09948938]
[1741537971127,7.6919,130.03,129.98,37.0761]
[1741537971330,35.02,130.05,129.98,2.0361]
[1741537971831,35.02,130.05,129.96,4.0531]
[1741537972034,0.05748749,130.03,130.0,0.0545113]
[1741537972834,7.74948749,130.03,130.0,0.0545113]
[1741537973030,0.05748749,130.03,130.0,0.0545113]
[1741537973332,0.05748749,130.03,130.01,7.6925]
[1741537973931,0.05748749,130.03,130.0,0.0545113]
[1741537974236,0.05748749,130.03,130.02,7.6925]
[1741537975434,0.05748749,130.03,130.0,65.77140068]
[1741537975633,0.05748749,130.03,130.0,58.07790068]
[1741537975833,35.04,130.08,130.0,58.07790068]
[1741537976034,35.04,130.08,130.0,58.02338938]
[1741537976337,35.04,130.08,129.99,35.04]
[1741537976538,35.04,130.08,130.01,7.6926]
[1741537976741,35.04,130.08,129.99,35.04]
[1741537976934,35.04,130.08,130.02,0.05160555]
[1741537977145,0.05868869,130.05,130.03,7.6915]
[1741537977338,0.05868869,130.05,130.02,0.05160555]
[1741537977530,0.05868869,130.05,130.03,7.6913]
[1741537977741,0.05868869,130.05,130.02,0.05160555]
[1741537977940,7.6913,130.04,130.02,0.05160555]
[1741537978137,0.05868869,130.05,130.02,0.05160555]
[1741537978440,34.84,130.04,130.02,0.05160555]
[1741537979641,0.05868869,130.05,130.02,0.05160555]
[1741537980035,0.05868869,130.05,130.04,7.6913]
[1741537980238,34.74,130.11,130.03,62.10128938]
[1741537980636,7.6883,130.1,130.06,7.69]
[1741537980831,34.74,130.11,130.03,62.10128938]
[1741537981142,36.8569,130.12,130.04,2.0508]
[1741537981335,0.02835726,130.08,130.06,0.05176356]
[1741537982142,192.0,130.15,130.06,96.85515294]
[1741537982443,31.80968935,130.16,130.06,92.96338938]
[1741537982942,60.03198938,130.17,130.06,92.96338938]
[1741537983243,7.6859,130.14,130.06,92.96338938]
[1741537983437,60.03198938,130.17,130.06,92.96338938]
[1741537983741,58.02338938,130.2,130.1,0.04886765]
[1741537984043,58.02338938,130.16,130.06,58.02338938]
[1741537984236,35.22,130.15,130.14,0.0586872]
[1741537984435,35.22,130.15,130.06,58.02338938]
[1741537984637,35.22,130.15,130.13,0.04849162]
[1741537984837,35.22,130.15,130.06,58.02338938]
[1741537985039,35.22,130.15,130.13,0.05723841]
[1741537985240,35.2,130.16,130.13,0.05723841]
[1741537985542,35.2,130.16,130.13,0.05385249]
[1741537986132,7.6854,130.14,130.13,5.249e-05]
[1741537986941,3.84,130.14,130.0,253.8]
[1741537987136,58.02338938,130.11,130.0,253.8]
[1741537987342,35.28,130.1,130.0,255.8613]
[1741537987644,7.6891,130.08,130.0,255.8613]
[1741537987844,35.28,130.1,130.0,255.8613]
[1741537988048,58.02338938,130.08,130.04,0.04992522]
[1741537988241,7.6912,130.05,130.04,0.04992522]
[1741537988442,43.0112,130.05,130.04,0.04992522]
[1741537988945,7.6935,130.01,129.95,13.7414]
[1741537989147,93.34338938,130.05,129.95,6.045]
[1741537989538,285.34338938,130.05,129.95,1.9606]
[1741537990144,0.05379231,130.01,129.99,0.05268681]
[1741537990343,0.05379231,130.01,129.9,4.0654]
[1741537990344,93.38338938,130.0,129.9,4.0654]
[1741537990647,7.6954,129.97,129.9,4.0654]
[1741537990845,93.38338938,130.0,129.9,4.0654]
[1741537991549,0.04883015,129.96,129.94,0.05208332]
[1741537991744,42.9766,129.95,129.94,0.05208332]
[1741537992548,7.6978,129.93,129.88,2.0174]
[1741537992747,35.28,129.95,129.88,2.0174]
[1741537993146,7.698,129.93,129.88,2.0174]
[1741537993345,35.28,129.95,129.86,4.092]
[1741537993547,35.28,129.95,129.87,7.7012]
[1741537993851,0.05414644,129.92,129.89,0.05667231]
[1741537994247,7.6996,129.9,129.89,0.05667231]
[1741537994442,35.36,129.91,129.89,0.05667231]
[1741537994851,0.05414644,129.92,129.89,0.05667231]
[1741537995050,0.05414644,129.92,129.89,6.00867231]
[1741537995251,0.05414644,129.92,129.9,7.6996]
[1741537995450,0.05414644,129.92,129.89,6.00867231]
[1741537995650,0.05414644,129.92,129.91,7.699]
[1741537995858,35.52,129.99,129.91,58.02338938]
[1741537996153,35.52,129.99,129.94,58.02338938]
[1741537996360,31.80968935,130.04,129.95,35.82]
[1741537996548,31.80968935,130.04,129.97,58.02338938]
[1741537996858,31.80968935,130.04,129.97,120.02338938]
[1741537997055,0.05100582,130.02,129.99,0.05162807]
[1741537997256,0.05100582,130.02,130.01,7.6931]
[1741537997451,31.80968935,130.04,130.0,58.02338938]
[1741537997849,35.8,130.07,130.02,7.6924]
[1741537998054,35.8,130.07,130.0,58.02338938]
[1741537998357,35.8,130.07,130.03,7.6918]
[1741537998554,35.8,130.07,130.02,0.04867923]
[1741537998748,0.04940093,130.05,130.02,7.74067923]
[1741537998954,0.04940093,130.05,130.02,0.04867923]
[1741537999255,0.04940093,130.05,130.0,58.02338938]
[1741537999457,0.04940093,130.05,130.02,0.05882948]
[1741537999656,31.80968935,130.1,130.03,93.88338938]
[1741537999954,84.82583827,130.11,130.06,58.02338938]
[1741538000150,127.23875741,130.12,130.09,58.02338938]
[1741538000552,4.0328,130.18,130.13,7.6858]
[1741538000553,115.6605098,130.16,130.13,7.6858]
[1741538000752,115.6605098,130.16,130.09,58.02338938]
[1741538001162,115.71450445,130.16,130.13,0.05739761]
[1741538001554,35.88,130.15,130.06,58.02338938]
[1741538001956,93.90338938,130.15,130.04,291.8624]
[1741538002755,93.90338938,130.15,130.08,0.05362107]
[1741538002958,0.05557989,130.11,130.08,0.05362107]
[1741538003462,0.05557989,130.11,130.1,7.6877]
[1741538003655,0.05557989,130.11,130.08,0.05362107]
[1741538003962,0.05557989,130.11,130.1,7.6877]
[1741538004162,7.989e-05,130.11,130.1,7.6877]
[1741538004353,7.989e-05,130.11,130.1,11.5277]
[1741538005368,7.989e-05,130.11,130.1,7.6877]
[1741538006065,7.989e-05,130.11,130.1,11.5277]
[1741538006253,7.989e-05,130.11,130.1,7.6877]
[1741538006764,36.0,130.18,130.1,3.84]
[1741538006960,1.9802,130.22,130.13,58.02338938]
[1741538007165,36.1,130.24,130.16,58.02338938]
[1741538007355,36.1,130.24,130.2,7.6818]
[1741538007560,36.1,130.24,130.16,58.02338938]
[1741538007959,0.05581237,130.21,130.19,0.0562017]
[1741538009067,7.6818,130.2,130.19,0.0562017]
[1741538009565,7.6846,130.16,130.11,43.887]
[1741538009866,36.2,130.2,130.11,36.2]
[1741538010265,7.6834,130.18,130.14,7.6853]
[1741538010468,36.2,130.2,130.11,36.2]
[1741538010656,0.05624537,130.17,130.15,0.05294758]
[1741538011262,0.05624537,130.17,130.16,7.6842]
[1741538011659,36.14,130.23,130.19,7.6819]
[1741538011960,38.2402,130.26,130.16,58.02338938]
[1741538012356,38.2402,130.26,130.13,58.02338938]
[1741538012566,38.2402,130.26,130.14,36.32]
[1741538012965,0.0553321,130.21,130.19,0.0523034]
[1741538013165,36.3,130.21,130.19,0.0523034]
[1741538013364,36.35431519,130.21,130.19,0.0523034]
[1741538013568,7.6818,130.2,130.19,0.0523034]
[1741538013769,36.35431519,130.21,130.1,96.67518938]
[1741538013969,7.6837,130.17,130.12,261.4464]
[1741538014164,2.1106,130.19,130.12,253.76]
[1741538014369,2.1106,130.19,130.1,2.1118]
[1741538014670,2.1106,130.19,130.08,36.58]
[1741538014868,2.1106,130.19,130.13,0.05059331]
[1741538015069,0.0500534,130.15,130.13,0.05059331]
[1741538015673,7.7351534,130.15,130.13,0.05059331]
[1741538015873,0.0500534,130.15,130.13,0.05059331]
[1741538016474,7.7351534,130.15,130.13,0.05059331]
[1741538016664,0.0500534,130.15,130.13,0.05059331]
[1741538017171,7.6854,130.14,130.13,0.05059331]
[1741538017370,0.0500534,130.15,130.13,0.05059331]
[1741538018074,7.7353534,130.15,130.13,0.05059331]
[1741538018573,0.0500534,130.15,130.13,0.05059331]
[1741538019277,0.0500534,130.15,130.14,7.6854]
[1741538019472,1.9721,130.22,130.13,58.07398269]
[1741538019778,1.9721,130.22,130.13,58.02338938]
[1741538019977,1.9721,130.22,130.12,2.1242]
[1741538020672,0.05302061,130.18,130.16,7.74318725]
[1741538020879,0.05302061,130.18,130.16,0.05898725]
[1741538021378,0.05302061,130.18,130.17,7.6836]
[1741538022372,3.919,130.26,130.17,3.84]
[1741538022572,36.26,130.27,130.16,58.02338938]
[1741538022772,36.26,130.27,130.19,58.02338938]
[1741538023482,43.9381,130.27,130.22,0.05073448]
[1741538023673,36.26,130.27,130.22,0.05073448]
[1741538023874,43.9378,130.27,130.23,7.6798]
[1741538024171,36.22,130.28,130.22,0.05073448]
[1741538024572,2.0775,130.29,130.22,0.05073448]
[1741538025372,2.0775,130.29,130.22,58.07412386]
[1741538025972,192.0,130.32,130.22,58.07412386]
[1741538026176,7.6775,130.28,130.24,7.6793]
[1741538026675,36.12,130.3,130.26,0.05502754]
[1741538027175,43.7961,130.3,130.26,7.73312754]
[1741538027377,36.12,130.3,130.26,0.05502754]
[1741538027575,7.6772,130.28,130.26,0.05502754]
[1741538027779,36.12,130.3,130.26,0.05502754]
[1741538028283,58.02338938,130.27,130.18,2.0587]
[1741538028472,36.02,130.26,130.18,2.0587]
[1741538028677,38.015,130.26,130.18,7.6828]
[1741538028875,38.015,130.26,130.17,38.0172]
[1741538029079,40.0376,130.26,130.17,38.0172]
[1741538029284,7.681,130.22,130.18,7.6827]
[1741538029587,7.681,130.22,130.2,0.058865]
[1741538029885,7.6812,130.21,130.2,0.058865]
[1741538030680,43.5808,130.22,130.2,0.058865]
[1741538030982,35.9,130.22,130.2,0.058865]
[1741538031292,7.6812,130.21,130.2,0.058865]
[1741538031985,43.5809,130.22,130.2,0.058865]
[1741538032881,7.6812,130.21,130.2,0.058865]
[1741538033090,35.9,130.22,130.2,0.058865]
[1741538033482,7.6812,130.21,130.2,0.058865]
[1741538034081,35.9,130.22,130.13,58.02338938]
[1741538034287,58.02338938,130.21,130.1,4.1665]
[1741538034883,7.6854,130.14,130.1,11.854]
[1741538035285,0.04984791,130.13,130.11,0.05202245]
[1741538035883,7.6865,130.12,130.11,0.05202245]
[1741538036589,0.04984791,130.13,130.11,0.05202245]
[1741538036778,35.60984791,130.13,130.11,0.05202245]
[1741538036977,43.29604791,130.13,130.11,0.05202245]
[1741538037190,35.60984791,130.13,130.11,0.05202245]
[1741538037390,0.04984791,130.13,130.11,0.05202245]
[1741538037587,0.04984791,130.13,130.12,7.6865]
[1741538038884,3.9962,130.21,130.12,61.86338938]
[1741538039088,39.8962,130.21,130.12,62.00858938]
[1741538039288,39.8962,130.21,130.13,36.0]
[1741538039486,39.8962,130.21,130.15,7.6845]
[1741538039686,39.8962,130.21,130.12,62.00858938]
[1741538040192,0.05899972,130.18,130.15,0.05636531]
[1741538040392,7.6839,130.17,130.15,0.05636531]
[1741538040890,0.05899972,130.18,130.15,0.05636531]
[1741538041191,35.88,130.17,130.15,0.05636531]
[1741538041388,35.88,130.17,130.07,39.8852]
[1741538041589,35.88,130.17,130.07,3.9852]
[1741538041988,43.5638,130.17,130.08,62.0]
[1741538042190,35.88,130.17,130.13,7.6859]
[1741538042686,7.74125741,130.16,130.14,0.05783485]
[1741538042885,0.05695741,130.16,130.14,7.74263485]
[1741538044093,0.05695741,130.16,130.14,0.05783485]
[1741538044298,7.6848,130.15,130.14,0.05783485]
[1741538045291,0.05695741,130.16,130.14,0.05783485]
[1741538046090,58.02338938,130.15,130.04,289.34]
[1741538046293,4.1613,130.14,130.04,253.58]
[1741538046491,4.1613,130.14,130.03,4.0385]
[1741538046492,58.02338938,130.12,130.03,4.0385]
[1741538046691,58.02338938,130.12,130.02,10.58660415]
[1741538046888,7.6908,130.05,130.02,10.58660415]
[1741538047089,35.76,130.08,130.02,10.58660415]
[1741538047289,0.05320753,130.05,130.02,10.64091801]
[1741538047490,7.6919,130.03,130.02,4.26391801]
[1741538047687,35.76,130.04,130.01,150.12849814]
[1741538047688,93.78338938,130.04,130.01,146.93949814]
[1741538048098,7.6925,130.02,130.01,146.93949814]
[1741538048396,7.6925,130.02,130.01,72.84354648]
[1741538048798,7.6924,130.03,129.96,31.64156952]
[1741538048998,7.6924,130.03,130.0,0.05786299]
[1741538049202,250.02338938,130.04,130.0,0.05786299]
[1741538049491,0.05281369,130.03,130.0,0.05786299]
[1741538049698,35.74,130.08,130.03,7.6915]
[1741538049895,35.74,130.08,130.01,4.0383]
[1741538050288,93.76338938,130.08,130.01,2.0502]
[1741538050488,35.74,130.08,130.01,2.0502]
[1741538050692,35.8,130.1,130.01,37.8502]
[1741538051089,0.04973644,130.06,130.03,0.05872562]
[1741538052900,0.04973644,130.06,130.03,7.75042562]
[1741538053203,0.04973644,130.06,130.03,0.05872562]
[1741538053389,0.04973644,130.06,130.03,7.75042562]
[1741538053699,0.04973644,130.06,130.03,0.05872562]
[1741538054191,36.02973644,130.06,130.03,0.05872562]
[1741538054702,7.6913,130.04,130.03,0.05872562]
[1741538056304,7.6934,130.01,129.96,7.6956]
[1741538056604,7.6934,130.01,129.94,93.88338938]
[1741538056807,35.84,130.02,129.94,93.88338938]
[1741538057406,0.05422257,129.99,129.98,7.6948]
[1741538057605,0.05422257,129.99,129.97,0.05290915]
[1741538057807,7.74902257,129.99,129.97,0.05290915]
[1741538058003,0.05422257,129.99,129.97,0.05290915]
[1741538058906,7.74842257,129.99,129.97,0.05290915]
[1741538059500,0.05422257,129.99,129.97,0.05290915]
[1741538060100,0.05422257,129.99,129.98,7.6948]
[1741538060305,35.78,130.04,129.97,0.05290915]
[1741538060512,35.78,130.04,129.95,35.78]
[1741538060702,35.78,130.04,129.97,58.02338938]
[1741538061004,35.78,130.04,129.98,2.056]
[1741538061307,35.72,130.06,129.98,2.056]
[1741538061509,0.05552722,130.02,130.0,0.05390942]
[1741538061699,35.72,130.06,130.0,0.05390942]
[1741538062105,7.6916,130.04,130.0,0.05390942]
[1741538062607,35.72,130.06,130.0,0.05390942]
[1741538062803,0.05177083,130.03,130.02,7.6921]
[1741538063706,35.8,130.09,130.01,0.05310338]
[1741538063911,93.82338938,130.09,129.99,35.8]
[1741538064116,7.6899,130.07,130.03,7.6913]
[1741538064307,35.76,130.08,129.99,35.8]
[1741538064700,0.0504276,130.05,130.02,0.05817932]
[1741538065706,7.6919,130.03,130.02,0.05817932]
[1741538066814,35.64,130.04,130.02,0.05817932]
[1741538068710,7.6919,130.03,130.02,0.05817932]
[1741538069212,3.84,130.03,129.93,3.9642]
[1741538069408,58.02338938,130.02,129.93,5.9472]
[1741538069713,7.6949,129.98,129.94,7.697]
[1741538070313,0.0547372,129.97,129.95,0.05481508]
[1741538071610,0.0547372,129.97,129.96,7.696]
[1741538071806,445.86,130.04,129.95,0.05481508]
[1741538072005,43.1528,130.02,129.98,7.6943]
[1741538072210,35.46,130.02,129.95,58.02338938]
[1741538072411,35.48,130.05,129.98,58.02338938]
[1741538072613,43.1703,130.06,129.98,58.02338938]
[1741538072813,35.48,130.06,129.98,58.02338938]
[1741538073017,0.05331333,130.03,130.01,0.05026712]
[1741538073407,7.6897,130.07,130.01,0.05026712]
[1741538073612,45.8949725,130.08,130.01,0.05026712]